bitfinex-derivatives/quotes_SOLF0:USTF0_20250719
["timestamp","ask_amount","ask_price","bid_price","bid_amount"]
[1752894668901,107.15632971,177.49,177.43,3.03]
[1752894669102,3.22,177.48,177.43,3.03]
[1752894669408,3.22,177.47,177.43,3.03]
[1752894669602,3.22,177.46,177.44,3.03]
[1752894669806,3.22,177.45,177.44,3.03]
[1752894671902,3.22,177.45,177.44,5.37512556]
[1752894673207,3.22,177.45,177.44,3.03]
[1752894675211,7.46702971,177.47,177.44,3.03]
[1752894675411,3.22,177.46,177.44,3.03]
[1752894676900,7.46702971,177.47,177.44,3.03]
[1752894677108,10.68702971,177.47,177.44,3.03]
[1752894677311,3.22,177.46,177.42,5.6321]
[1752894677511,3.22,177.46,177.45,3.03]
[1752894679517,8.8509,177.46,177.45,3.03]
[1752894681314,5.6309,177.46,177.45,3.03]
[1752894681513,8.8509,177.46,177.45,3.03]
[1752894682911,3.22,177.46,177.45,3.03]
[1752894683113,3.22,177.54,177.45,3.03]
[1752894683311,5.05632971,177.46,177.39,1.83632971]
[1752894683609,5.05632971,177.46,177.37,4.6778015]
[1752894683610,3.22,177.44,177.41,3.03]
[1752894683913,3.22,177.44,177.43,3.03]
[1752894684113,3.22,177.44,177.43,5.35345898]
[1752894684811,5.05632971,177.44,177.43,5.35345898]
[1752894685409,5.05632971,177.44,177.43,2.32345898]
[1752894685713,3.17,177.43,177.41,3.17]
[1752894686014,5.00632971,177.42,177.41,3.17]
[1752894686315,1.83632971,177.42,177.41,5.49544414]
[1752894687810,3.17,177.43,177.41,5.49544414]
[1752894688012,1.83632971,177.45,177.42,2.32479419]
[1752894688213,1.83632971,177.45,177.43,5.49479419]
[1752894688518,1.83632971,177.45,177.44,3.17]
[1752894689319,7.46752971,177.45,177.44,3.17]
[1752894689719,1.83632971,177.45,177.44,3.17]
[1752894690820,10.63752971,177.45,177.44,3.17]
[1752894691215,7.46752971,177.45,177.39,5.633]
[1752894691417,3.17,177.44,177.43,3.17]
[1752894691616,5.00632971,177.44,177.43,3.17]
[1752894693620,3.17,177.44,177.43,3.17]
[1752894693822,5.00632971,177.44,177.43,3.17]
[1752894695222,5.00632971,177.44,177.43,5.49822586]
[1752894697518,8.8015,177.45,177.44,3.17]
[1752894697723,10.63782971,177.45,177.44,5.49822586]
[1752894698622,10.63782971,177.45,177.44,5.49988229]
[1752894698821,10.63782971,177.45,177.44,2.32988229]
[1752894699120,10.63782971,177.45,177.44,5.49988229]
[1752894700028,5.6315,177.45,177.44,5.49988229]
[1752894700226,7.46782971,177.45,177.44,5.49988229]
[1752894700725,3.17,177.47,177.45,3.17]
[1752894701026,1.83632971,177.47,177.46,5.49988229]
[1752894701220,1.83632971,177.48,177.47,3.17]
[1752894701426,1.83632971,177.48,177.47,5.49988229]
[1752894704922,8.7999,177.49,177.47,2.32988229]
[1752894704923,5.6299,177.49,177.47,2.32988229]
[1752894705125,1.83632971,177.49,177.48,5.49988229]
[1752894705429,1.83632971,177.49,177.48,3.17]
[1752894705631,5.00632971,177.49,177.48,2.34084983]
[1752894705828,5.00632971,177.49,177.48,5.51084983]
[1752894706831,10.63622971,177.49,177.48,5.51084983]
[1752894708734,5.6299,177.49,177.48,5.51084983]
[1752894709228,8.7999,177.49,177.48,5.51084983]
[1752894709423,5.6299,177.49,177.48,5.51084983]
[1752894711024,5.6306,177.47,177.46,3.17]
[1752894711229,10.63692971,177.47,177.46,5.5071189]
[1752894711630,7.46692971,177.47,177.46,5.5071189]
[1752894711827,1.83632971,177.47,177.46,5.5071189]
[1752894712024,10.63672971,177.48,177.46,5.5071189]
[1752894712231,10.63672971,177.48,177.47,5.5071189]
[1752894712730,7.46672971,177.48,177.47,5.5071189]
[1752894716034,10.53672971,177.48,177.47,5.5071189]
[1752894716630,8.7004,177.48,177.47,5.5071189]
[1752894716832,7.46672971,177.48,177.47,5.5071189]
[1752894717029,10.53672971,177.48,177.47,5.5071189]
[1752894718841,10.53672971,177.48,177.47,5.50610534]
[1752894719342,10.53672971,177.48,177.47,2.33610534]
[1752894719538,10.53672971,177.48,177.47,3.02]
[1752894719738,10.53672971,177.48,177.47,5.35686385]
[1752894720139,7.46672971,177.48,177.47,5.35686385]
[1752894721146,7.46672971,177.48,177.47,5.3574638]
[1752894721948,3.07,177.5,177.47,2.3374638]
[1752894722149,1.83632971,177.51,177.48,3.02]
[1752894722348,4.90632971,177.51,177.48,3.02]
[1752894722550,5.6299,177.49,177.48,3.02]
[1752894724352,1.83632971,177.5,177.48,3.02]
[1752894724551,10.53572971,177.51,177.48,3.02]
[1752894725047,7.46572971,177.51,177.48,3.02]
[1752894725249,7.46542971,177.52,177.48,3.02]
[1752894725442,7.46542971,177.52,177.49,2.33606383]
[1752894725640,7.46542971,177.52,177.48,3.02]
[1752894725839,7.46542971,177.52,177.5,3.02]
[1752894726041,5.6291,177.52,177.5,3.02]
[1752894727050,107.05632971,177.53,177.5,3.02]
[1752894727051,1.83632971,177.53,177.5,3.02]
[1752894727646,5.6288,177.53,177.5,3.02]
[1752894727852,11.78723583,177.55,177.5,3.02]
[1752894728356,11.78723583,177.55,177.51,2.33475939]
[1752894728553,11.78723583,177.55,177.5,3.02]
[1752894728554,8.6984,177.54,177.52,3.02]
[1752894729150,5.6287,177.53,177.52,3.02]
[1752894732154,8.6987,177.53,177.52,3.02]
[1752894732756,5.6287,177.53,177.52,3.02]
[1752894734757,5.6284,177.54,177.52,3.02]
[1752894734958,11.78723583,177.55,177.52,3.02]
[1752894735860,5.6284,177.54,177.52,3.02]
[1752894736558,5.6287,177.53,177.52,3.02]
[1752894737563,5.6284,177.54,177.52,3.02]
[1752894738760,5.6287,177.53,177.52,3.02]
[1752894739059,6.80132238,177.53,177.52,3.02]
[1752894739957,8.6985,177.54,177.52,3.02]
[1752894740159,5.6285,177.54,177.52,3.02]
[1752894740360,1.17262238,177.53,177.52,3.02]
[1752894740758,4.24262238,177.53,177.52,3.02]
[1752894740958,1.17262238,177.53,177.52,3.02]
[1752894743056,5.6285,177.54,177.52,3.02]
[1752894743261,1.17262238,177.53,177.52,3.02]
[1752894743455,6.80132238,177.53,177.52,3.02]
[1752894743661,9.87132238,177.53,177.52,3.02]
[1752894744763,5.6285,177.54,177.52,3.02]
[1752894744970,1.17262238,177.53,177.52,3.02]
[1752894745864,1.17262238,177.54,177.52,2.32972102]
[1752894746056,1.17262238,177.54,177.53,3.07]
[1752894746262,15.67900612,177.55,177.53,3.07]
[1752894746464,1.17262238,177.54,177.53,3.07]
[1752894746863,15.67900612,177.55,177.53,3.07]
[1752894747063,1.17262238,177.54,177.53,3.07]
[1752894747768,10.05090612,177.55,177.53,3.07]
[1752894747958,1.17262238,177.54,177.53,3.07]
[1752894749568,10.05090612,177.55,177.53,3.07]
[1752894749769,8.0535285,177.55,177.53,3.07]
[1752894750267,11.2491,177.67,177.45,78.16192612]
[1752894750268,1.17262238,177.58,177.55,3.07]
[1752894750571,3.17,177.55,177.5,1.17262238]
[1752894750763,3.17,177.53,177.52,3.07]
[1752894750965,9.97132238,177.53,177.52,3.07]
[1752894751165,1.17262238,177.53,177.52,3.07]
[1752894751766,1.17262238,177.53,177.49,1.17262238]
[1752894751767,3.17,177.53,177.49,1.17262238]
[1752894752071,1.17262238,177.52,177.5,2.33036668]
[1752894752271,1.17262238,177.52,177.51,2.33036668]
[1752894752467,1.17262238,177.52,177.51,5.40036668]
[1752894754273,4.34262238,177.52,177.51,5.40036668]
[1752894754574,1.17262238,177.52,177.51,5.40036668]
[1752894755173,6.80162238,177.52,177.51,5.40036668]
[1752894755375,9.97162238,177.52,177.51,2.33036668]
[1752894755576,3.17,177.51,177.49,3.07]
[1752894755778,3.17,177.51,177.46,1.17262238]
[1752894755779,4.34262238,177.5,177.46,6.80332238]
[1752894755968,3.17,177.63,177.49,1.17262238]
[1752894756173,3.17,177.61,177.5,2.33255927]
[1752894756371,3.17,177.61,177.51,3.07]
[1752894757575,1.17262238,177.52,177.51,3.07]
[1752894757776,1.17262238,177.52,177.51,5.40329859]
[1752894758271,4.34262238,177.52,177.51,5.40329859]
[1752894758470,4.34262238,177.52,177.51,3.07]
[1752894759066,4.34262238,177.52,177.51,5.40426404]
[1752894759675,4.34262238,177.52,177.51,3.07]
[1752894760579,9.97162238,177.52,177.51,3.07]
[1752894761376,4.34262238,177.52,177.51,3.07]
[1752894761768,9.97162238,177.52,177.51,3.07]
[1752894762679,8.7987,177.53,177.51,5.40547104]
[1752894762976,1.17262238,177.52,177.48,1.17262238]
[1752894763277,1.17262238,177.52,177.49,6.89515632]
[1752894763474,8.7987,177.53,177.5,5.40536567]
[1752894763675,8.7987,177.53,177.51,5.40536567]
[1752894763974,1.17262238,177.52,177.51,3.07]
[1752894764175,6.80162238,177.52,177.51,5.40611529]
[1752894764974,9.97162238,177.52,177.51,5.40611529]
[1752894765784,4.34262238,177.52,177.51,3.07]
[1752894767377,9.97162238,177.52,177.51,3.07]
[1752894767577,3.17,177.56,177.51,3.07]
[1752894767778,4.34262238,177.52,177.51,3.07]
[1752894767974,3.17,177.52,177.51,3.07]
[1752894768174,3.17,177.53,177.51,3.07]
[1752894768374,3.17,177.53,177.52,2.34057889]
[1752894768575,4.34262238,177.53,177.52,5.41057889]
[1752894768778,9.97132238,177.53,177.52,5.41057889]
[1752894769280,9.97132238,177.53,177.52,3.07]
[1752894770380,9.97132238,177.53,177.52,5.41135283]
[1752894774285,4.34262238,177.53,177.52,5.41135283]
[1752894774882,9.97132238,177.53,177.52,5.41135283]
[1752894775480,5.6299,177.5,177.47,3.08]
[1752894775686,105.06,177.57,177.46,3.08]
[1752894775687,3.14,177.49,177.46,3.08]
[1752894775879,3.14,177.49,177.48,3.08]
[1752894776280,1.17262238,177.49,177.48,7.64882156]
[1752894776480,3.14,177.51,177.48,3.08]
[1752894776682,1.17262238,177.49,177.48,3.08]
[1752894779083,4.31262238,177.49,177.48,3.08]
[1752894780385,3.14,177.49,177.48,3.08]
[1752894780586,4.31262238,177.49,177.48,3.08]
[1752894781091,3.14,177.49,177.48,3.08]
[1752894781387,4.31262238,177.49,177.48,3.08]
[1752894783596,1.17262238,177.49,177.48,3.08]
[1752894783790,4.31262238,177.49,177.48,3.08]
[1752894784988,3.14,177.49,177.48,3.08]
[1752894785189,1.17262238,177.49,177.48,7.64376778]
[1752894785690,1.17262238,177.5,177.49,3.08]
[1752894785893,3.14,177.5,177.49,3.08]
[1752894786088,4.31262238,177.5,177.49,3.08]
[1752894786284,3.14,177.5,177.49,3.08]
[1752894786486,4.31262238,177.5,177.49,7.64310885]
[1752894787788,3.14,177.5,177.49,7.64310885]
[1752894788081,1.17262238,177.51,177.49,4.56310885]
[1752894788279,1.17262238,177.51,177.5,3.08]
[1752894788881,4.31262238,177.51,177.5,3.08]
[1752894789491,1.17262238,177.53,177.5,1.17262238]
[1752894789691,1.17262238,177.53,177.51,3.08]
[1752894790289,3.14,177.54,177.51,3.08]
[1752894790490,1.17262238,177.53,177.51,3.08]
[1752894790994,6.80132238,177.53,177.51,3.08]
[1752894791889,5.6287,177.53,177.51,4.25262238]
[1752894792389,8.7687,177.53,177.52,3.08]
[1752894793595,5.6287,177.53,177.52,3.08]
[1752894793990,9.94132238,177.53,177.52,3.08]
[1752894796296,5.6287,177.53,177.52,3.08]
[1752894796991,8.7687,177.53,177.52,3.08]
[1752894800294,8.7685,177.54,177.52,3.08]
[1752894800501,9.94112238,177.54,177.52,3.08]
[1752894802095,8.7685,177.54,177.52,3.08]
[1752894802293,5.6287,177.53,177.52,3.08]
[1752894803100,8.7685,177.54,177.52,3.08]
[1752894803297,6.80112238,177.54,177.52,3.08]
[1752894803496,1.17262238,177.54,177.52,3.08]
[1752894803697,9.94082238,177.55,177.53,3.08]
[1752894804100,8.7682,177.55,177.53,3.08]
[1752894804599,5.6284,177.54,177.53,3.08]
[1752894805197,8.9484,177.54,177.53,3.08]
[1752894805394,5.6284,177.54,177.53,3.08]
[1752894805702,4.49262238,177.55,177.54,3.2]
[1752894805900,1.17262238,177.56,177.54,3.2]
[1752894806200,1.17262238,177.58,177.55,1.17262238]
[1752894806405,3.32,177.55,177.51,1.17262238]
[1752894806598,4.49262238,177.55,177.52,3.2]
[1752894806799,3.32,177.54,177.52,3.2]
[1752894807199,3.32,177.52,177.51,3.2]
[1752894807602,4.49262238,177.52,177.51,3.2]
[1752894808003,3.32,177.51,177.49,3.2]
[1752894808207,4.49262238,177.5,177.49,3.2]
[1752894808905,10.12222238,177.5,177.49,3.2]
[1752894809904,3.32,177.48,177.43,3.2]
[1752894810103,16.91,177.58,177.43,3.2]
[1752894810104,3.32,177.46,177.45,3.2]
[1752894810304,1.17262238,177.47,177.45,7.74526441]
[1752894810602,4.49262238,177.47,177.44,3.2]
[1752894810803,4.49262238,177.47,177.46,3.2]
[1752894811005,3.32,177.47,177.46,3.2]
[1752894811407,8.9506,177.47,177.46,3.2]
[1752894811707,1.83358824,177.48,177.46,3.2]
[1752894812303,8.9506,177.47,177.46,3.2]
[1752894814114,5.6306,177.47,177.46,3.2]
[1752894814314,7.46398824,177.48,177.46,3.2]
[1752894816017,5.6301,177.49,177.46,3.2]
[1752894816516,5.6303,177.48,177.46,3.2]
[1752894816712,1.83358824,177.49,177.46,3.2]
[1752894816908,1.83358824,177.49,177.47,3.2]
[1752894816909,3.32,177.48,177.47,3.2]
[1752894817816,8.9503,177.48,177.47,3.2]
[1752894818614,5.6306,177.47,177.46,3.2]
[1752894818919,8.9506,177.47,177.46,3.2]
[1752894820609,5.631,177.46,177.45,3.2]
[1752894820812,8.951,177.46,177.45,3.2]
[1752894821916,3.32,177.44,177.42,3.2]
[1752894822314,3.32,177.43,177.38,1.83358824]
[1752894822515,3.32,177.43,177.39,4.53681146]
[1752894822820,1.83358824,177.44,177.41,3.2]
[1752894823023,3.32,177.42,177.41,3.2]
[1752894824725,8.9522,177.42,177.41,3.2]
[1752894829125,5.6322,177.42,177.41,3.2]
[1752894829431,8.9522,177.42,177.41,3.2]
[1752894829723,3.32,177.39,177.35,1.83358824]
[1752894829925,3.32,177.39,177.36,4.52984855]
[1752894830127,3.32,177.39,177.36,3.2]
[1752894830725,5.6333,177.39,177.36,3.2]
[1752894832930,5.6335,177.38,177.36,3.2]
[1752894834432,5.6335,177.38,177.37,3.15]
[1752894837332,3.16,177.39,177.37,3.15]
[1752894837333,5.6332,177.39,177.37,3.15]
[1752894842539,3.16,177.48,177.39,3.15]
[1752894842732,3.16,177.43,177.39,3.15]
[1752894843434,3.16,177.42,177.39,3.15]
[1752894843635,3.16,177.41,177.39,3.15]
[1752894843933,5.6328,177.41,177.39,3.15]
[1752894844436,8.7928,177.41,177.39,3.15]
[1752894844639,3.16,177.4,177.39,3.15]
[1752894844837,8.7928,177.41,177.39,3.15]
[1752894845039,5.6328,177.41,177.39,3.15]
[1752894845242,3.16,177.4,177.37,1.83358824]
[1752894845738,3.16,177.4,177.38,3.15]
[1752894845934,5.6328,177.41,177.38,3.15]
[1752894846239,3.16,177.4,177.38,3.15]
[1752894846940,3.16,177.4,177.39,1.17409206]
[1752894847140,3.16,177.4,177.39,4.32409206]
[1752894847436,8.7928,177.41,177.39,1.17409206]
[1752894847643,8.7928,177.41,177.4,3.15]
[1752894848341,9.96689206,177.41,177.4,3.15]
[1752894850743,5.6332,177.39,177.38,3.15]
[1752894851042,8.7932,177.39,177.38,4.32409206]
[1752894851742,3.16,177.39,177.38,4.32409206]
[1752894852243,8.7931,177.39,177.38,4.32409206]
[1752894853045,3.16,177.39,177.38,4.32409206]
[1752894853843,8.7929,177.4,177.38,4.32409206]
[1752894854046,8.7929,177.4,177.39,3.15]
[1752894858148,3.16,177.4,177.39,3.15]
[1752894859349,8.7928,177.4,177.39,3.15]
[1752894860549,8.7928,177.4,177.39,4.32409206]
[1752894861249,5.6328,177.4,177.39,8.88877176]
[1752894861444,3.16,177.44,177.4,3.15]
[1752894861649,3.16,177.5,177.44,3.15]
[1752894861851,3.16,177.5,177.46,4.32409206]
[1752894861852,8.7906,177.47,177.46,4.32409206]
[1752894862148,1.17409206,177.51,177.47,3.15]
[1752894862446,5.6299,177.5,177.49,3.15]
[1752894862646,5.6299,177.5,177.49,4.32409206]
[1752894863149,8.7899,177.5,177.49,4.32409206]
[1752894863344,8.7899,177.5,177.49,3.15]
[1752894864048,8.7899,177.5,177.49,4.32409206]
[1752894864949,3.16,177.55,177.5,3.25]
[1752894865347,3.16,177.54,177.5,3.25]
[1752894865547,3.16,177.53,177.5,3.25]
[1752894865750,8.789,177.53,177.5,3.25]
[1752894866050,3.16,177.53,177.5,3.25]
[1752894866242,8.7887,177.53,177.5,3.25]
[1752894866441,8.7887,177.53,177.44,3.25]
[1752894866442,3.16,177.52,177.44,3.25]
[1752894866650,5.6305,177.48,177.46,3.25]
[1752894866942,8.7905,177.48,177.47,3.25]
[1752894869548,5.6305,177.48,177.47,3.25]
[1752894869746,8.7905,177.48,177.47,3.25]
[1752894870050,5.6305,177.48,177.47,3.25]
[1752894870251,5.6297,177.5,177.47,3.25]
[1752894871243,5.6294,177.51,177.49,3.25]
[1752894873554,5.6296,177.5,177.49,3.25]
[1752894874757,5.6294,177.51,177.49,3.25]
[1752894878155,5.6291,177.52,177.49,3.25]
[1752894878356,8.7891,177.52,177.49,3.25]
[1752894878753,3.16,177.52,177.49,8.8799]
[1752894879054,3.16,177.51,177.48,1.83190603]
[1752894879455,3.16,177.51,177.49,3.25]
[1752894880356,5.6291,177.52,177.5,3.25]
[1752894880357,3.16,177.52,177.5,3.25]
[1752894881054,3.16,177.52,177.51,3.25]
[1752894882057,4.99190603,177.54,177.51,3.25]
[1752894882248,3.16,177.53,177.51,3.25]
[1752894882549,3.16,177.53,177.49,5.6298]
[1752894882756,3.16,177.52,177.5,3.25]
[1752894883558,3.16,177.51,177.48,5.6302]
[1752894884060,3.16,177.51,177.49,3.25]
[1752894884255,3.16,177.52,177.49,3.25]
[1752894884558,3.16,177.51,177.49,3.25]
[1752894884855,3.16,177.52,177.49,3.25]
[1752894885858,3.16,177.53,177.49,3.25]
[1752894886659,3.16,177.51,177.49,3.25]
[1752894887362,3.16,177.51,177.5,3.25]
[1752894890857,1.83190603,177.56,177.5,3.25]
[1752894891056,3.16,177.53,177.5,3.25]
[1752894891463,3.16,177.51,177.5,3.25]
[1752894892963,3.16,177.51,177.49,3.25]
[1752894893263,1.83190603,177.59,177.48,3.25]
[1752894893264,3.16,177.49,177.48,3.25]
[1752894894063,4.99190603,177.5,177.48,3.25]
[1752894894263,5.6294,177.51,177.48,3.25]
[1752894894470,8.8994,177.51,177.48,3.25]
[1752894894965,3.27,177.52,177.49,3.17]
[1752894895869,8.8991,177.52,177.49,3.17]
[1752894897265,8.8988,177.53,177.49,3.17]
[1752894897968,8.8988,177.53,177.49,8.7999]
[1752894898168,5.629,177.52,177.5,3.17]
[1752894898364,8.899,177.52,177.5,3.17]
[1752894900168,8.8988,177.53,177.5,3.17]
[1752894900868,5.6288,177.53,177.5,3.17]
[1752894901066,8.8988,177.53,177.5,3.17]
[1752894902770,5.6288,177.53,177.51,3.17]
[1752894902967,3.27,177.57,177.51,5.00190603]
[1752894903170,3.27,177.57,177.54,3.17]
[1752894903369,3.27,177.56,177.5,1.83190603]
[1752894903568,3.27,177.54,177.5,3.17]
[1752894903773,3.27,177.52,177.5,3.17]
[1752894904070,5.629,177.52,177.47,5.6304]
[1752894904369,3.27,177.52,177.48,4.53350598]
[1752894904574,3.27,177.51,177.5,3.17]
[1752894904869,5.10190603,177.51,177.48,3.17]
[1752894905063,3.27,177.49,177.43,76.77066035]
[1752894905270,3.27,177.47,177.45,3.17]
[1752894905470,3.27,177.47,177.46,7.70946058]
[1752894905876,1.83190603,177.49,177.43,74.93875432]
[1752894906074,3.27,177.46,177.45,3.17]
[1752894906769,3.27,177.46,177.45,7.71788139]
[1752894907169,3.27,177.46,177.43,74.93875432]
[1752894907170,3.27,177.46,177.43,78.10875432]
[1752894907371,3.27,177.45,177.44,7.71776854]
[1752894907769,10.73310603,177.45,177.44,4.54776854]
[1752894908169,3.27,177.44,177.43,3.17]
[1752894908480,3.27,177.44,177.43,7.71760608]
[1752894908776,10.73310603,177.45,177.44,3.17]
[1752894909278,8.9012,177.45,177.44,3.17]
[1752894911278,3.27,177.45,177.44,3.17]
[1752894911985,8.9012,177.45,177.44,3.17]
[1752894912771,3.27,177.44,177.41,3.17]
[1752894912976,3.27,177.43,177.42,3.17]
[1752894914676,8.9019,177.43,177.42,3.17]
[1752894914978,3.27,177.42,177.4,3.17]
[1752894915380,5.6324,177.42,177.4,3.17]
[1752894915579,3.27,177.41,177.4,3.17]
[1752894917080,8.9024,177.42,177.4,3.17]
[1752894917280,8.9024,177.42,177.41,3.17]
[1752894920584,5.6324,177.42,177.41,3.17]
[1752894920788,5.632,177.43,177.41,3.17]
[1752894920985,8.902,177.43,177.41,3.17]
[1752894922487,3.27,177.42,177.39,1.83190603]
[1752894922688,8.9023,177.42,177.39,1.83190603]
[1752894922888,8.9023,177.42,177.4,3.17]
[1752894923587,8.9025,177.41,177.4,3.17]
[1752894924990,3.27,177.41,177.4,3.17]
[1752894925191,8.6923,177.42,177.4,3.17]
[1752894928591,5.6323,177.42,177.4,3.17]
[1752894928993,8.6923,177.42,177.4,3.17]
[1752894930494,5.6323,177.42,177.4,3.17]
[1752894931596,5.6323,177.42,177.4,5.00190603]
[1752894931796,5.6323,177.42,177.41,3.02]
[1752894933094,3.06,177.43,177.41,8.6525]
[1752894933297,3.06,177.45,177.42,4.85190603]
[1752894933496,3.06,177.45,177.43,3.02]
[1752894934489,8.6912,177.45,177.44,3.02]
[1752894938905,3.06,177.45,177.44,3.02]
[1752894942508,3.06,177.46,177.44,3.02]
[1752894943302,28.1556,177.56,177.44,3.02]
[1752894943303,3.06,177.56,177.44,3.02]
[1752894943507,11.252,177.62,177.46,3.02]
[1752894943508,3.06,177.53,177.46,3.02]
[1752894943704,5.6299,177.5,177.47,3.02]
[1752894943907,3.06,177.49,177.45,3.02]
[1752894944104,3.06,177.49,177.46,3.02]
[1752894944407,3.06,177.48,177.44,3.02]
[1752894944605,3.06,177.46,177.4,1.83190603]
[1752894944797,3.06,177.44,177.41,4.58056386]
[1752894945003,3.06,177.44,177.39,3.02]
[1752894945300,3.06,177.43,177.4,4.58137029]
[1752894945500,3.06,177.42,177.36,4.67908541]
[1752894945801,3.06,177.41,177.38,3.02]
[1752894946006,3.06,177.41,177.4,3.02]
[1752894946208,3.06,177.41,177.4,4.58173593]
[1752894946508,3.06,177.4,177.39,3.02]
[1752894946812,3.06,177.4,177.39,7.60508384]
[1752894946999,3.06,177.4,177.37,3.02]
[1752894947205,3.06,177.39,177.38,3.02]
[1752894947902,3.06,177.43,177.39,3.02]
[1752894948107,3.06,177.42,177.39,3.02]
[1752894948507,3.06,177.42,177.41,3.02]
[1752894948706,3.06,177.42,177.41,7.60888228]
[1752894949105,3.06,177.42,177.41,4.58888228]
[1752894949410,3.06,177.42,177.41,4.59045004]
[1752894949798,3.06,177.41,177.4,3.02]
[1752894950003,3.06,177.41,177.4,7.61002157]
[1752894950507,3.06,177.43,177.4,9.92039671]
[1752894950808,3.06,177.42,177.41,7.60982804]
[1752894951109,3.06,177.5,177.42,3.02]
[1752894951309,3.06,177.46,177.43,2.31004647]
[1752894951509,3.06,177.46,177.44,2.31004647]
[1752894951712,5.6311,177.46,177.45,2.31021824]
[1752894951913,1.83190603,177.47,177.4,3.02]
[1752894952107,380.49190603,177.52,177.41,4.58999167]
[1752894952407,3.06,177.44,177.42,7.60999167]
[1752894952603,3.06,177.44,177.42,3.02]
[1752894952809,3.06,177.43,177.42,3.02]
[1752894953009,3.06,177.43,177.42,7.61007902]
[1752894953410,3.06,177.46,177.43,3.02]
[1752894953711,3.06,177.45,177.41,3.02]
[1752894953910,3.06,177.45,177.42,7.61011983]
[1752894954110,3.06,177.45,177.42,3.02]
[1752894954810,8.6913,177.45,177.42,3.02]
[1752894955011,3.02,177.43,177.42,3.02]
[1752894955208,3.02,177.43,177.42,7.60994474]
[1752894956006,7.46290603,177.46,177.42,7.60994474]
[1752894956213,3.02,177.44,177.43,3.2]
[1752894957315,3.02,177.44,177.42,3.2]
[1752894957508,3.02,177.43,177.42,3.2]
[1752894957710,3.02,177.43,177.42,4.59033924]
[1752894958808,3.02,177.43,177.42,7.79033924]
[1752894960912,1.83190603,177.5,177.43,3.2]
[1752894961112,378.66,177.52,177.45,3.2]
[1752894961306,3.02,177.51,177.48,1.83190603]
[1752894961505,3.02,177.53,177.49,4.59033924]
[1752894961711,3.02,177.53,177.5,3.2]
[1752894963917,5.6287,177.53,177.5,3.2]
[1752894964118,3.02,177.52,177.51,3.2]
[1752894964513,8.649,177.52,177.51,3.2]
[1752894965811,5.6299,177.5,177.46,3.2]
[1752894966017,3.02,177.49,177.45,3.2]
[1752894966212,3.02,177.49,177.46,3.2]
[1752894966412,3.02,177.47,177.46,3.2]
[1752894967511,8.6506,177.47,177.46,3.2]
[1752894968916,3.02,177.47,177.43,1.83190603]
[1752894969118,3.02,177.47,177.44,7.84795324]
[1752894969416,3.02,177.47,177.41,1.83190603]
[1752894969721,8.6511,177.46,177.43,3.2]
[1752894969926,3.02,177.46,177.45,3.2]
[1752894970118,8.6509,177.46,177.45,3.2]
[1752894972225,5.6309,177.46,177.45,3.2]
[1752894973622,3.02,177.48,177.45,3.2]
[1752894974123,3.02,177.48,177.47,3.2]